[Event "Late-Titled-Tuesday-Blitz-March-12-2024"]
[Site "Chess.com"]
[Date "2024.03.12"]
[Round "6"]
[White "DryCounty"]
[Black "stollenmonster"]
[Result "1-0"]
[WhiteElo "2666"]
[BlackElo "2853"]
[TimeControl "180+1"]
[EndTime "15:03:00 PDT"]
[Termination "DryCounty won by resignation"]

1. Nf3 {[%clk 0:03:00.9]} 1... Nf6 {[%clk 0:02:57.5]} 2. c4 {[%clk 0:02:59.9]}
2... e6 {[%clk 0:02:58.4]} 3. g3 {[%clk 0:02:59.1]} 3... d5 {[%clk 0:02:59.3]}
4. b3 {[%clk 0:02:56.7]} 4... Be7 {[%clk 0:02:59.4]} 5. Bg2 {[%clk 0:02:56.6]}
5... O-O {[%clk 0:03:00]} 6. O-O {[%clk 0:02:56.9]} 6... c5 {[%clk 0:02:59.6]}
7. e3 {[%clk 0:02:56.2]} 7... Nc6 {[%clk 0:02:59.4]} 8. Bb2 {[%clk 0:02:56]}
8... b6 {[%clk 0:02:58.6]} 9. Nc3 {[%clk 0:02:54.6]} 9... Ba6 {[%clk 0:02:51.7]}
10. Qe2 {[%clk 0:02:53.2]} 10... Rc8 {[%clk 0:02:49.6]} 11. Nb5 {[%clk
0:02:47.8]} 11... Qd7 {[%clk 0:02:44.4]} 12. Rfd1 {[%clk 0:02:43.4]} 12... Rfd8
{[%clk 0:02:44.3]} 13. d4 {[%clk 0:02:41.9]} 13... cxd4 {[%clk 0:02:41.3]} 14.
exd4 {[%clk 0:02:39.6]} 14... dxc4 {[%clk 0:02:27.5]} 15. bxc4 {[%clk
0:02:37.4]} 15... Qe8 {[%clk 0:01:38.2]} 16. Bc3 {[%clk 0:02:34.7]} 16... Na5
{[%clk 0:01:26.2]} 17. Bxa5 {[%clk 0:02:29.6]} 17... bxa5 {[%clk 0:01:27.1]} 18.
a4 {[%clk 0:02:24.6]} 18... Bb4 {[%clk 0:01:18.8]} 19. Ne5 {[%clk 0:02:20.8]}
19... Bxb5 {[%clk 0:01:17.5]} 20. axb5 {[%clk 0:02:12.2]} 20... h6 {[%clk
0:00:52.8]} 21. Nc6 {[%clk 0:02:08.6]} 21... Rd6 {[%clk 0:00:51.6]} 22. Nxa7
{[%clk 0:01:59.5]} 22... Rc7 {[%clk 0:00:49.3]} 23. Nc6 {[%clk 0:01:58.7]} 23...
Rcxc6 {[%clk 0:00:47.4]} 24. bxc6 {[%clk 0:01:55.9]} 24... Rxc6 {[%clk
0:00:48.3]} 25. Bxc6 {[%clk 0:01:54.6]} 25... Qxc6 {[%clk 0:00:49.2]} 26. d5
{[%clk 0:01:53.6]} 26... exd5 {[%clk 0:00:48.6]} 27. cxd5 {[%clk 0:01:53.6]}
27... Nxd5 {[%clk 0:00:48.2]} 28. Qe4 {[%clk 0:01:50.3]} 28... Ne7 {[%clk
0:00:48.5]} 29. Rd8+ {[%clk 0:01:45]} 1-0

[Event "Late-Titled-Tuesday-Blitz-March-12-2024"]
[Site "Chess.com"]
[Date "2024.03.12"]
[Round "6"]
[White "FairChess_on_YouTube"]
[Black "GMKrikor"]
[Result "1-0"]
[WhiteElo "3111"]
[BlackElo "2883"]
[TimeControl "180+1"]
[EndTime "15:03:03 PDT"]
[Termination "FairChess_on_YouTube won by resignation"]

1. e4 {[%clk 0:03:00.9]} 1... c5 {[%clk 0:02:59.5]} 2. Nf3 {[%clk 0:03:00.7]}
2... Nc6 {[%clk 0:02:59.7]} 3. Bb5 {[%clk 0:03:00.3]} 3... Nf6 {[%clk
0:02:59.8]} 4. Bxc6 {[%clk 0:02:54.1]} 4... dxc6 {[%clk 0:02:58.8]} 5. d3 {[%clk
0:02:54.4]} 5... Bg4 {[%clk 0:02:58.7]} 6. O-O {[%clk 0:02:53.3]} 6... Nd7
{[%clk 0:02:56.8]} 7. Nbd2 {[%clk 0:02:52.3]} 7... e5 {[%clk 0:02:56.2]} 8. Nc4
{[%clk 0:02:51.4]} 8... f6 {[%clk 0:02:52.9]} 9. a4 {[%clk 0:02:51.5]} 9... a5
{[%clk 0:02:44.4]} 10. c3 {[%clk 0:02:44.6]} 10... Be7 {[%clk 0:02:38]} 11. Ne3
{[%clk 0:02:33.5]} 11... Be6 {[%clk 0:02:08.8]} 12. Nf5 {[%clk 0:02:33.4]} 12...
O-O {[%clk 0:02:06.5]} 13. N3h4 {[%clk 0:02:33.2]} 13... Rf7 {[%clk 0:01:48.9]}
14. Qg4 {[%clk 0:02:29.4]} 14... Bxf5 {[%clk 0:01:07]} 15. Nxf5 {[%clk
0:02:28.7]} 15... Kh8 {[%clk 0:01:00.8]} 16. f4 {[%clk 0:02:23.8]} 16... exf4
{[%clk 0:00:55.6]} 17. Bxf4 {[%clk 0:02:23.2]} 17... Nf8 {[%clk 0:00:56.3]} 18.
Rf3 {[%clk 0:02:21.8]} 18... Ng6 {[%clk 0:00:46.7]} 19. Raf1 {[%clk 0:02:14.6]}
19... Nxf4 {[%clk 0:00:42.1]} 20. Qxf4 {[%clk 0:02:13.7]} 20... Bf8 {[%clk
0:00:41.5]} 21. Rh3 {[%clk 0:02:11.1]} 21... Kg8 {[%clk 0:00:30.4]} 22. e5
{[%clk 0:02:01.4]} 22... fxe5 {[%clk 0:00:26.9]} 23. Nh6+ {[%clk 0:02:00.8]}
23... gxh6 {[%clk 0:00:24.2]} 24. Qxf7+ {[%clk 0:02:00.8]} 24... Kh8 {[%clk
0:00:24.9]} 25. Rg3 {[%clk 0:02:00.6]} 1-0

[Event "Late-Titled-Tuesday-Blitz-March-12-2024"]
[Site "Chess.com"]
[Date "2024.03.12"]
[Round "6"]
[White "yaguigor"]
[Black "scarabee43"]
[Result "0-1"]
[WhiteElo "2614"]
[BlackElo "2844"]
[TimeControl "180+1"]
[EndTime "15:03:32 PDT"]
[Termination "scarabee43 won by resignation"]

1. e4 {[%clk 0:03:00.9]} 1... c5 {[%clk 0:02:59.8]} 2. Nf3 {[%clk 0:03:00]} 2...
e6 {[%clk 0:03:00.3]} 3. d4 {[%clk 0:02:59.3]} 3... cxd4 {[%clk 0:03:01.1]} 4.
Nxd4 {[%clk 0:02:59.4]} 4... Nc6 {[%clk 0:03:01.8]} 5. Nc3 {[%clk 0:02:59]} 5...
Qc7 {[%clk 0:03:02.2]} 6. Be3 {[%clk 0:02:58]} 6... a6 {[%clk 0:03:01.8]} 7. Qd2
{[%clk 0:02:57.3]} 7... Nf6 {[%clk 0:03:00.9]} 8. f4 {[%clk 0:02:56.7]} 8... b5
{[%clk 0:02:52.6]} 9. e5 {[%clk 0:02:52.1]} 9... b4 {[%clk 0:02:52.9]} 10. exf6
{[%clk 0:02:27.4]} 10... bxc3 {[%clk 0:02:51.2]} 11. bxc3 {[%clk 0:02:28]} 11...
gxf6 {[%clk 0:02:50]} 12. Nxc6 {[%clk 0:02:10.6]} 12... Qxc6 {[%clk 0:02:48.5]}
13. Rb1 {[%clk 0:02:09.9]} 13... f5 {[%clk 0:02:23.7]} 14. Qd4 {[%clk 0:01:50]}
14... Rg8 {[%clk 0:02:20.6]} 15. Rb6 {[%clk 0:01:38.2]} 15... Qc7 {[%clk
0:02:19.9]} 16. Qc4 {[%clk 0:01:32.7]} 16... Qxc4 {[%clk 0:02:15.2]} 17. Bxc4
{[%clk 0:01:31.6]} 17... Rxg2 {[%clk 0:02:15.9]} 18. Rg1 {[%clk 0:01:19.7]}
18... Rxg1+ {[%clk 0:02:09.1]} 19. Bxg1 {[%clk 0:01:19]} 19... d5 {[%clk
0:02:08.5]} 20. Be2 {[%clk 0:01:17.4]} 20... Be7 {[%clk 0:01:52.7]} 21. c4
{[%clk 0:01:16.1]} 21... Bd8 {[%clk 0:01:52.7]} 22. Rb3 {[%clk 0:01:14.4]} 22...
dxc4 {[%clk 0:01:49.5]} 23. Bxc4 {[%clk 0:01:12.7]} 23... Bd7 {[%clk 0:01:43.2]}
24. Rh3 {[%clk 0:01:11.2]} 24... Rb8 {[%clk 0:01:25.1]} 25. Bd4 {[%clk
0:00:57.3]} 25... Rb4 {[%clk 0:01:23.2]} 26. Rc3 {[%clk 0:00:48.1]} 26... Ba5
{[%clk 0:01:20.4]} 27. Kf2 {[%clk 0:00:44.8]} 27... Ra4 {[%clk 0:01:20.3]} 0-1

[Event "Late-Titled-Tuesday-Blitz-March-12-2024"]
[Site "Chess.com"]
[Date "2024.03.12"]
[Round "6"]
[White "shirovin"]
[Black "rikchessmx"]
[Result "1-0"]
[WhiteElo "2060"]
[BlackElo "2268"]
[TimeControl "180+1"]
[EndTime "15:03:55 PDT"]
[Termination "shirovin won by checkmate"]

1. e4 {[%clk 0:03:00.9]} 1... d5 {[%clk 0:03:00.9]} 2. exd5 {[%clk 0:03:00.3]}
2... Qxd5 {[%clk 0:03:01.8]} 3. Nc3 {[%clk 0:03:00.2]} 3... Qa5 {[%clk
0:03:01.2]} 4. d4 {[%clk 0:03:00.6]} 4... Nf6 {[%clk 0:03:01.7]} 5. Bc4 {[%clk
0:02:58.8]} 5... Nc6 {[%clk 0:03:01.9]} 6. Nf3 {[%clk 0:02:45.4]} 6... Bg4
{[%clk 0:03:00.7]} 7. h3 {[%clk 0:02:42.8]} 7... Qh5 {[%clk 0:02:59.8]} 8. Be3
{[%clk 0:02:39.4]} 8... e6 {[%clk 0:02:51.2]} 9. Be2 {[%clk 0:01:45.9]} 9...
O-O-O {[%clk 0:02:44.1]} 10. Qd2 {[%clk 0:01:35.3]} 10... Bb4 {[%clk 0:02:42.5]}
11. a3 {[%clk 0:01:30.7]} 11... Bxc3 {[%clk 0:02:30.8]} 12. Qxc3 {[%clk
0:01:28.3]} 12... Nd5 {[%clk 0:02:29.9]} 13. Qd2 {[%clk 0:01:25.9]} 13... f5
{[%clk 0:02:23.9]} 14. O-O-O {[%clk 0:01:23]} 14... Bxf3 {[%clk 0:02:23.2]} 15.
Bxf3 {[%clk 0:01:21.6]} 15... Qf7 {[%clk 0:02:22.8]} 16. Rhe1 {[%clk 0:01:16.4]}
16... f4 {[%clk 0:02:21.1]} 17. Bxd5 {[%clk 0:01:14]} 17... fxe3 {[%clk
0:02:20.3]} 18. Bxe6+ {[%clk 0:01:04.3]} 18... Qxe6 {[%clk 0:02:19.9]} 19. fxe3
{[%clk 0:01:01.1]} 19... Qa2 {[%clk 0:02:19.2]} 20. c3 {[%clk 0:00:59.7]} 20...
Ne5 {[%clk 0:02:17]} 21. Qc2 {[%clk 0:00:46.6]} 21... Nc4 {[%clk 0:02:12.2]} 22.
e4 {[%clk 0:00:41]} 22... Rhf8 {[%clk 0:02:10]} 23. e5 {[%clk 0:00:35.4]} 23...
Rde8 {[%clk 0:02:05.7]} 24. Re2 {[%clk 0:00:30.8]} 24... g6 {[%clk 0:02:04.2]}
25. Rde1 {[%clk 0:00:28]} 25... Qa1+ {[%clk 0:01:58.3]} 26. Qb1 {[%clk
0:00:27.6]} 26... Qxb1+ {[%clk 0:01:58.3]} 27. Kxb1 {[%clk 0:00:27.5]} 27... a5
{[%clk 0:01:55.7]} 28. Kc2 {[%clk 0:00:25.3]} 28... a4 {[%clk 0:01:55.8]} 29.
Kd3 {[%clk 0:00:20]} 29... b5 {[%clk 0:01:54.9]} 30. d5 {[%clk 0:00:19.5]} 30...
Kd7 {[%clk 0:01:53.2]} 31. e6+ {[%clk 0:00:19.3]} 31... Kd6 {[%clk 0:01:51]} 32.
Kd4 {[%clk 0:00:19.6]} 32... Rf4+ {[%clk 0:01:49]} 33. Re4 {[%clk 0:00:19.7]}
33... Rxe4+ {[%clk 0:01:45.2]} 34. Rxe4 {[%clk 0:00:19.2]} 34... Nxb2 {[%clk
0:01:45.4]} 35. Rh4 {[%clk 0:00:18.3]} 35... Re7 {[%clk 0:01:45]} 36. Rf4 {[%clk
0:00:18]} 36... Nc4 {[%clk 0:01:44.7]} 37. Rf8 {[%clk 0:00:15.1]} 37... Nxa3
{[%clk 0:01:43.6]} 38. Rd8+ {[%clk 0:00:14.4]} 38... Rd7 {[%clk 0:01:41.9]} 39.
Rxd7# {[%clk 0:00:14.2]} 1-0

[Event "Late-Titled-Tuesday-Blitz-March-12-2024"]
[Site "Chess.com"]
[Date "2024.03.12"]
[Round "6"]
[White "Willhaven3"]
[Black "IraZyne"]
[Result "1-0"]
[WhiteElo "2624"]
[BlackElo "2342"]
[TimeControl "180+1"]
[EndTime "15:03:58 PDT"]
[Termination "Willhaven3 won by resignation"]

1. e4 {[%clk 0:03:00.9]} 1... Nf6 {[%clk 0:02:56.5]} 2. e5 {[%clk 0:03:00.8]}
2... Nd5 {[%clk 0:02:55.9]} 3. c4 {[%clk 0:03:01.2]} 3... Nb6 {[%clk 0:02:55.3]}
4. d4 {[%clk 0:03:01.5]} 4... d6 {[%clk 0:02:55.5]} 5. exd6 {[%clk 0:03:01.8]}
5... exd6 {[%clk 0:02:55.6]} 6. Nc3 {[%clk 0:02:55.4]} 6... Be7 {[%clk
0:02:55.5]} 7. Nf3 {[%clk 0:02:55.4]} 7... Bg4 {[%clk 0:02:54.6]} 8. Be2 {[%clk
0:02:55]} 8... c6 {[%clk 0:02:54.9]} 9. O-O {[%clk 0:02:55.2]} 9... O-O {[%clk
0:02:54.1]} 10. Be3 {[%clk 0:02:55.4]} 10... Bxf3 {[%clk 0:02:53]} 11. gxf3
{[%clk 0:02:52.2]} 11... d5 {[%clk 0:02:53]} 12. b3 {[%clk 0:02:49.9]} 12... Bf6
{[%clk 0:02:52]} 13. Kh1 {[%clk 0:02:48.1]} 13... N8d7 {[%clk 0:02:51.8]} 14.
Qd2 {[%clk 0:02:43.9]} 14... Re8 {[%clk 0:02:49.9]} 15. Rg1 {[%clk 0:02:43.7]}
15... Nf8 {[%clk 0:02:42.9]} 16. f4 {[%clk 0:02:31.8]} 16... Qd7 {[%clk
0:02:24]} 17. Bg4 {[%clk 0:02:19.5]} 17... Qe7 {[%clk 0:02:13.7]} 18. c5 {[%clk
0:02:15.6]} 18... Nc8 {[%clk 0:02:12.4]} 19. Rg3 {[%clk 0:02:10.3]} 19... Qc7
{[%clk 0:02:07.3]} 20. Rag1 {[%clk 0:02:09.6]} 20... Ne7 {[%clk 0:02:04.9]} 21.
Ne2 {[%clk 0:02:03]} 21... b6 {[%clk 0:01:58.3]} 22. b4 {[%clk 0:01:58.2]} 22...
bxc5 {[%clk 0:01:58.2]} 23. dxc5 {[%clk 0:01:46.1]} 23... a5 {[%clk 0:01:55.9]}
24. a3 {[%clk 0:01:45.7]} 24... axb4 {[%clk 0:01:55.9]} 25. axb4 {[%clk
0:01:46.6]} 25... Ra1 {[%clk 0:01:48.7]} 26. Bd4 {[%clk 0:01:45.8]} 26... Rxg1+
{[%clk 0:01:46.5]} 27. Rxg1 {[%clk 0:01:46.6]} 27... Bxd4 {[%clk 0:01:46.1]} 28.
Nxd4 {[%clk 0:01:44.4]} 28... g6 {[%clk 0:01:39.6]} 29. f5 {[%clk 0:01:41.5]}
29... Qe5 {[%clk 0:01:32.3]} 30. Re1 {[%clk 0:01:37.7]} 30... Qf6 {[%clk
0:01:29.8]} 31. Qf4 {[%clk 0:01:23.4]} 31... h5 {[%clk 0:01:11.7]} 32. Bh3
{[%clk 0:01:19.4]} 32... g5 {[%clk 0:01:11.7]} 33. Qe5 {[%clk 0:01:19.5]} 33...
Qxe5 {[%clk 0:01:08]} 34. Rxe5 {[%clk 0:01:20.4]} 34... f6 {[%clk 0:01:01.2]}
35. Re3 {[%clk 0:01:17.4]} 35... Kf7 {[%clk 0:01:01.1]} 36. b5 {[%clk
0:01:05.6]} 36... cxb5 {[%clk 0:01:00.3]} 37. Nxb5 {[%clk 0:01:06.5]} 37... Rc8
{[%clk 0:00:58.2]} 38. Nd6+ {[%clk 0:01:06.5]} 1-0

[Event "Late-Titled-Tuesday-Blitz-March-12-2024"]
[Site "Chess.com"]
[Date "2024.03.12"]
[Round "6"]
[White "Bugcrusher"]
[Black "ArtemDyachuk"]
[Result "0-1"]
[WhiteElo "2532"]
[BlackElo "2692"]
[TimeControl "180+1"]
[EndTime "15:04:04 PDT"]
[Termination "ArtemDyachuk won by resignation"]

1. e4 {[%clk 0:02:59.4]} 1... e5 {[%clk 0:02:57.7]} 2. Nf3 {[%clk 0:02:59.1]}
2... Nc6 {[%clk 0:02:58.4]} 3. c3 {[%clk 0:02:59.1]} 3... Nf6 {[%clk 0:02:56.5]}
4. d4 {[%clk 0:02:58.9]} 4... exd4 {[%clk 0:02:56.6]} 5. e5 {[%clk 0:02:58]}
5... Nd5 {[%clk 0:02:56.7]} 6. Bc4 {[%clk 0:02:58]} 6... Nb6 {[%clk 0:02:55.7]}
7. Bb3 {[%clk 0:02:58.1]} 7... d6 {[%clk 0:02:56]} 8. exd6 {[%clk 0:02:54.2]}
8... Bxd6 {[%clk 0:02:56.9]} 9. cxd4 {[%clk 0:02:50.1]} 9... Bg4 {[%clk
0:02:55.6]} 10. Be3 {[%clk 0:02:48.7]} 10... O-O {[%clk 0:02:54.5]} 11. h3
{[%clk 0:02:46]} 11... Bh5 {[%clk 0:02:53.7]} 12. O-O {[%clk 0:02:46]} 12... h6
{[%clk 0:02:48.5]} 13. Nc3 {[%clk 0:02:40.4]} 13... Re8 {[%clk 0:02:46.9]} 14.
Re1 {[%clk 0:02:16.7]} 14... Qf6 {[%clk 0:02:44.4]} 15. g4 {[%clk 0:02:06.7]}
15... Bg6 {[%clk 0:02:44.1]} 16. Kg2 {[%clk 0:02:01.6]} 16... Nb4 {[%clk
0:02:40]} 17. Qd2 {[%clk 0:01:54.5]} 17... Nd3 {[%clk 0:02:39.1]} 18. Re2 {[%clk
0:01:41.1]} 18... Re4 {[%clk 0:02:23]} 19. Nd5 {[%clk 0:01:20.3]} 19... Nxd5
{[%clk 0:02:21.1]} 20. Bxd5 {[%clk 0:01:20.4]} 20... Rf4 {[%clk 0:02:10.6]} 21.
Ne5 {[%clk 0:01:01]} 21... Bxe5 {[%clk 0:01:50.3]} 22. dxe5 {[%clk 0:01:00.4]}
22... Qxe5 {[%clk 0:01:51.2]} 23. Bxf4 {[%clk 0:00:19.7]} 23... Nxf4+ {[%clk
0:01:50.2]} 24. Kf1 {[%clk 0:00:20.1]} 24... Nxe2 {[%clk 0:01:50.2]} 25. Re1
{[%clk 0:00:16.8]} 25... Qd4 {[%clk 0:01:21.7]} 26. Rxe2 {[%clk 0:00:15.4]}
26... Bd3 {[%clk 0:01:20.7]} 27. Kg1 {[%clk 0:00:12.1]} 27... Qxd5 {[%clk
0:01:19.8]} 28. Re3 {[%clk 0:00:11.6]} 28... Rd8 {[%clk 0:01:20.3]} 0-1

[Event "Late-Titled-Tuesday-Blitz-March-12-2024"]
[Site "Chess.com"]
[Date "2024.03.12"]
[Round "6"]
[White "CrushingKings"]
[Black "Kostukov_Alex"]
[Result "1-0"]
[WhiteElo "2591"]
[BlackElo "2300"]
[TimeControl "180+1"]
[EndTime "15:04:07 PDT"]
[Termination "CrushingKings won by resignation"]

1. Nf3 {[%clk 0:03:00.9]} 1... g6 {[%clk 0:02:57.6]} 2. d4 {[%clk 0:02:59.8]}
2... Bg7 {[%clk 0:02:58.1]} 3. g3 {[%clk 0:03:00.7]} 3... d6 {[%clk 0:02:58.7]}
4. Bg2 {[%clk 0:02:59.8]} 4... Nf6 {[%clk 0:02:57.1]} 5. b3 {[%clk 0:03:00.2]}
5... O-O {[%clk 0:02:58]} 6. Bb2 {[%clk 0:03:00.8]} 6... c6 {[%clk 0:02:57.7]}
7. O-O {[%clk 0:03:01.1]} 7... Nbd7 {[%clk 0:02:54.7]} 8. c4 {[%clk 0:03:00.8]}
8... Qc7 {[%clk 0:02:47.8]} 9. Nc3 {[%clk 0:03:00.1]} 9... a6 {[%clk 0:02:40.7]}
10. Rc1 {[%clk 0:02:39.5]} 10... e5 {[%clk 0:02:24.3]} 11. dxe5 {[%clk
0:02:39.6]} 11... dxe5 {[%clk 0:02:22.5]} 12. Qc2 {[%clk 0:02:39.8]} 12... Nc5
{[%clk 0:02:20.1]} 13. Ba3 {[%clk 0:02:25.9]} 13... Bf5 {[%clk 0:02:14.9]} 14.
Qb2 {[%clk 0:02:22.3]} 14... b6 {[%clk 0:02:03.1]} 15. Nh4 {[%clk 0:02:15.4]}
15... Be6 {[%clk 0:01:57.2]} 16. b4 {[%clk 0:02:13.7]} 16... Ncd7 {[%clk
0:01:43.2]} 17. b5 {[%clk 0:02:13.7]} 17... Nc5 {[%clk 0:01:24.5]} 18. Bxc6
{[%clk 0:02:03.6]} 18... Rac8 {[%clk 0:01:05.2]} 19. Nd5 {[%clk 0:02:03.6]}
19... Nxd5 {[%clk 0:00:51]} 20. cxd5 {[%clk 0:02:03.8]} 20... Bh3 {[%clk
0:00:50.8]} 21. Rfd1 {[%clk 0:02:03.9]} 21... e4 {[%clk 0:00:38.8]} 22. Qb1
{[%clk 0:01:43.4]} 22... g5 {[%clk 0:00:37.9]} 23. Ng2 {[%clk 0:01:42.2]} 23...
Bf5 {[%clk 0:00:34.1]} 24. Ne3 {[%clk 0:01:41.2]} 24... Bg6 {[%clk 0:00:34.3]}
25. d6 {[%clk 0:01:38.4]} 25... Qd8 {[%clk 0:00:30.3]} 26. d7 {[%clk 0:01:36.4]}
26... Rc7 {[%clk 0:00:28.7]} 27. Bxc5 {[%clk 0:01:36.1]} 27... bxc5 {[%clk
0:00:28.9]} 28. Nd5 {[%clk 0:01:36.4]} 28... f5 {[%clk 0:00:20.5]} 29. Nxc7
{[%clk 0:01:32.6]} 29... Qxc7 {[%clk 0:00:21.4]} 30. Qb3+ {[%clk 0:01:31.4]}
30... Kh8 {[%clk 0:00:21.4]} 31. b6 {[%clk 0:01:28.2]} 31... Qb8 {[%clk
0:00:15.3]} 32. Qd5 {[%clk 0:01:26.1]} 32... f4 {[%clk 0:00:14.7]} 33. d8=Q
{[%clk 0:01:26]} 1-0

[Event "Late-Titled-Tuesday-Blitz-March-12-2024"]
[Site "Chess.com"]
[Date "2024.03.12"]
[Round "6"]
[White "Jospem"]
[Black "mbojan"]
[Result "1-0"]
[WhiteElo "3117"]
[BlackElo "2888"]
[TimeControl "180+1"]
[EndTime "15:04:08 PDT"]
[Termination "Jospem won by resignation"]

1. e4 {[%clk 0:03:00.9]} 1... a6 {[%clk 0:02:55.7]} 2. c4 {[%clk 0:03:00.6]}
2... c5 {[%clk 0:02:54.4]} 3. Nc3 {[%clk 0:03:00.1]} 3... e6 {[%clk 0:02:54.9]}
4. d3 {[%clk 0:02:58.8]} 4... Nc6 {[%clk 0:02:54.7]} 5. g3 {[%clk 0:02:59.7]}
5... g6 {[%clk 0:02:54.8]} 6. Bg2 {[%clk 0:03:00.2]} 6... Bg7 {[%clk 0:02:55.4]}
7. Nge2 {[%clk 0:03:00.8]} 7... d6 {[%clk 0:02:56]} 8. Be3 {[%clk 0:03:00.9]}
8... Nd4 {[%clk 0:02:55.2]} 9. O-O {[%clk 0:03:01]} 9... Ne7 {[%clk 0:02:55.3]}
10. Qd2 {[%clk 0:03:00.8]} 10... O-O {[%clk 0:02:51.4]} 11. Bh6 {[%clk 0:03:01]}
11... Nec6 {[%clk 0:02:50.3]} 12. Bxg7 {[%clk 0:03:01]} 12... Kxg7 {[%clk
0:02:51.2]} 13. Rab1 {[%clk 0:02:58.1]} 13... b6 {[%clk 0:02:45.9]} 14. a3
{[%clk 0:02:58.1]} 14... a5 {[%clk 0:02:46.4]} 15. Nxd4 {[%clk 0:02:47.7]} 15...
Nxd4 {[%clk 0:02:46]} 16. f4 {[%clk 0:02:48.1]} 16... Ra7 {[%clk 0:02:44.2]} 17.
Rbe1 {[%clk 0:02:45.3]} 17... f6 {[%clk 0:02:42.5]} 18. h4 {[%clk 0:02:38.4]}
18... h6 {[%clk 0:02:32.4]} 19. Ne2 {[%clk 0:02:38.2]} 19... e5 {[%clk
0:02:30.3]} 20. Nxd4 {[%clk 0:02:37.4]} 20... cxd4 {[%clk 0:02:29.3]} 21. Kh2
{[%clk 0:02:33.9]} 21... Raf7 {[%clk 0:02:14.3]} 22. b4 {[%clk 0:02:34]} 22...
axb4 {[%clk 0:02:13.2]} 23. axb4 {[%clk 0:02:34.9]} 23... Ra7 {[%clk 0:02:13.2]}
24. Rf2 {[%clk 0:02:31.6]} 24... Rff7 {[%clk 0:02:11.6]} 25. Ref1 {[%clk
0:02:31.8]} 25... Qf8 {[%clk 0:02:10.9]} 26. Qe2 {[%clk 0:02:23.7]} 26... Qh8
{[%clk 0:02:06.4]} 27. Bh3 {[%clk 0:02:22.7]} 27... Bxh3 {[%clk 0:02:00]} 28.
Kxh3 {[%clk 0:02:23.6]} 28... Qc8+ {[%clk 0:01:59.1]} 29. f5 {[%clk 0:02:22.2]}
29... g5 {[%clk 0:01:58.7]} 30. Qh5 {[%clk 0:02:20.7]} 30... Qh8 {[%clk
0:01:58.7]} 31. Rc1 {[%clk 0:02:17]} 31... Qh7 {[%clk 0:01:44.8]} 32. c5 {[%clk
0:02:14.5]} 32... bxc5 {[%clk 0:01:44.9]} 33. bxc5 {[%clk 0:02:15.4]} 33... dxc5
{[%clk 0:01:45.5]} 34. Rxc5 {[%clk 0:02:15.2]} 34... Rac7 {[%clk 0:01:23.3]} 35.
Rfc2 {[%clk 0:02:09.3]} 35... Rxc5 {[%clk 0:01:19.9]} 36. Rxc5 {[%clk
0:02:10.2]} 36... Re7 {[%clk 0:01:20]} 37. Rc6 {[%clk 0:02:06.6]} 37... Rf7
{[%clk 0:01:19.4]} 38. Kg4 {[%clk 0:02:05.9]} 38... gxh4 {[%clk 0:00:35.4]} 39.
Kxh4 {[%clk 0:02:00.1]} 39... Kf8 {[%clk 0:00:35.4]} 40. Rc8+ {[%clk 0:01:33.6]}
40... Ke7 {[%clk 0:00:35.2]} 41. Qg6 {[%clk 0:01:30.7]} 41... h5 {[%clk
0:00:25.9]} 42. Qxh7 {[%clk 0:01:29]} 1-0

[Event "Late-Titled-Tuesday-Blitz-March-12-2024"]
[Site "Chess.com"]
[Date "2024.03.12"]
[Round "6"]
[White "Lady_Nika"]
[Black "manitodeplomo"]
[Result "1-0"]
[WhiteElo "2580"]
[BlackElo "2692"]
[TimeControl "180+1"]
[EndTime "15:04:09 PDT"]
[Termination "Lady_Nika won on time"]

1. e4 {[%clk 0:03:00.9]} 1... e6 {[%clk 0:02:59.9]} 2. d4 {[%clk 0:03:01]} 2...
d5 {[%clk 0:03:00.3]} 3. exd5 {[%clk 0:03:01.3]} 3... Qxd5 {[%clk 0:02:58.5]} 4.
Nf3 {[%clk 0:03:02.2]} 4... c5 {[%clk 0:02:57.2]} 5. c4 {[%clk 0:03:01.2]} 5...
Qd6 {[%clk 0:02:55.8]} 6. d5 {[%clk 0:02:59.3]} 6... Nf6 {[%clk 0:02:53.9]} 7.
Nc3 {[%clk 0:02:59.2]} 7... a6 {[%clk 0:02:52.5]} 8. g3 {[%clk 0:02:56.5]} 8...
exd5 {[%clk 0:02:52]} 9. cxd5 {[%clk 0:02:55.9]} 9... b5 {[%clk 0:02:47.6]} 10.
Bf4 {[%clk 0:02:55.5]} 10... Qb6 {[%clk 0:02:47.5]} 11. Qe2+ {[%clk 0:02:49.2]}
11... Kd8 {[%clk 0:02:46.1]} 12. Ne5 {[%clk 0:02:41.2]} 12... Ra7 {[%clk
0:02:39.6]} 13. d6 {[%clk 0:02:39.3]} 13... Bxd6 {[%clk 0:02:29.3]} 14. O-O-O
{[%clk 0:02:39.2]} 14... Re8 {[%clk 0:02:28.6]} 15. Qd2 {[%clk 0:02:29.8]} 15...
Re6 {[%clk 0:00:26.6]} 16. Bh3 {[%clk 0:02:18]} 16... Ke7 {[%clk 0:00:15.6]} 17.
Bxe6 {[%clk 0:02:16.4]} 17... Bxe6 {[%clk 0:00:15.3]} 18. Qxd6+ {[%clk
0:02:13.2]} 18... Qxd6 {[%clk 0:00:14.8]} 19. Rxd6 {[%clk 0:02:12.5]} 19... Kxd6
{[%clk 0:00:14.8]} 20. Ng4+ {[%clk 0:02:08.1]} 20... Ke7 {[%clk 0:00:13.1]} 21.
Nxf6 {[%clk 0:02:07.9]} 21... Nc6 {[%clk 0:00:07.8]} 22. Nfd5+ {[%clk
0:02:07.1]} 22... Kf8 {[%clk 0:00:06.9]} 23. Bd6+ {[%clk 0:02:05.1]} 23... Kg8
{[%clk 0:00:07]} 24. Bxc5 {[%clk 0:02:05.3]} 24... Rd7 {[%clk 0:00:06.9]} 25.
Rd1 {[%clk 0:02:03.4]} 25... h6 {[%clk 0:00:07.2]} 26. Nf4 {[%clk 0:02:02.5]}
26... Rxd1+ {[%clk 0:00:06.3]} 27. Kxd1 {[%clk 0:02:03.4]} 27... Bg4+ {[%clk
0:00:06.1]} 28. Kc2 {[%clk 0:02:02.5]} 28... Ne5 {[%clk 0:00:07]} 29. h4 {[%clk
0:01:53]} 29... Bf5+ {[%clk 0:00:06.6]} 30. Kd1 {[%clk 0:01:51.5]} 30... g5
{[%clk 0:00:05.6]} 31. hxg5 {[%clk 0:01:49.9]} 31... hxg5 {[%clk 0:00:06.5]} 32.
Nfd5 {[%clk 0:01:50.2]} 32... Kh7 {[%clk 0:00:06.4]} 33. Bd4 {[%clk 0:01:48.3]}
33... Nf3 {[%clk 0:00:04.5]} 34. Be3 {[%clk 0:01:48.4]} 34... Be6 {[%clk
0:00:03.7]} 35. Nc7 {[%clk 0:01:47.3]} 35... Bc4 {[%clk 0:00:02.5]} 36. Nxa6
{[%clk 0:01:45.8]} 1-0